fUSD/lending_fUSD_20260218
["ID","MTS","AMOUNT","RATE_DAILY","PERIOD"]
[405886082,1771396240911,-151.0,0.0001,2]
[405886084,1771396240920,-500.0,0.0001,2]
[405886086,1771396240929,-151.0,0.0001,2]
[405886088,1771396240938,-151.0,0.0001,2]
[405886090,1771396240947,-151.0,0.0001,2]
[405886092,1771396240956,-151.0,0.0001,2]
[405886094,1771396240966,-151.0,0.0001,2]
[405886096,1771396240975,-151.0,0.0001,2]
[405886098,1771396240985,-151.0,0.0001,2]
[405886100,1771396240994,-151.0,0.0001,2]
[405886102,1771396241003,-151.0,0.0001,2]
[405886104,1771396241012,-151.0,0.0001,2]
[405886106,1771396241022,-151.0,0.0001,2]
[405886108,1771396241032,-219.86429651,0.0001,2]
[405886110,1771396241042,-151.0,0.0001,2]
[405886112,1771396241052,-151.0,0.0001,2]
[405886114,1771396241062,-151.0,0.0001,2]
[405886116,1771396241072,-151.0,0.0001,2]
[405886118,1771396241082,-500.0,0.0001,2]
[405886120,1771396241091,-151.0,0.0001,2]
[405886122,1771396241100,-151.0,0.0001,2]
[405886124,1771396241109,-500.0,0.0001,2]
[405886126,1771396241118,-151.0,0.0001,2]
[405886128,1771396241127,-500.0,0.0001,2]
[405886130,1771396241136,-151.0,0.0001,2]
[405886132,1771396241146,-500.0,0.0001,2]
[405886134,1771396241155,-500.0,0.0001,2]
[405886136,1771396241168,-500.0,0.0001,2]
[405886138,1771396241178,-151.0,0.0001,2]
[405886140,1771396241188,-500.0,0.0001,2]
[405886142,1771396241199,-500.0,0.0001,2]
[405886144,1771396241208,-500.0,0.0001,2]
[405886146,1771396241217,-500.0,0.0001,2]
[405886148,1771396241226,-500.0,0.0001,2]
[405886150,1771396241238,-500.0,0.0001,2]
[405886152,1771396241247,-1846.16972481,0.0001,2]
[405886154,1771396241256,-61515.39177223,0.00010054,2]
[405886156,1771396241265,-166.66,0.00010061,2]
[405886158,1771396241275,-255.77393512,0.00010064,2]
[405886160,1771396241284,-2000.0,0.000101,2]
[405886162,1771396241293,-5277.56803221,0.00010236,2]
[405886164,1771396241302,-1000.0,0.00010274,2]
[405886167,1771396241318,-21159.47305191,0.00010296,2]
[405886169,1771396241331,-1600.0,0.00010344,2]
[405886172,1771396241341,-166.66,0.00010354,2]
[405886174,1771396241351,-209.40437684,0.00010356,2]
[405886176,1771396241360,-689.55945904,0.00010356,2]
[405886178,1771396241370,-721.12765535,0.00010356,2]
[405886180,1771396241380,-743.50770149,0.00010356,2]
[405886182,1771396241389,-459.36923991,0.00010356,2]
[405886184,1771396241398,-209.40437684,0.00010356,2]
[405886186,1771396241410,-162.380719,0.00010356,2]
[405886188,1771396241419,-151.0,0.00010356,2]
[405886190,1771396241429,-200.0,0.00010356,2]
[405886192,1771396241439,-174.61919141,0.00010356,2]
[405886194,1771396241448,-277.35679052,0.00010356,2]
[405886196,1771396241457,-693.3919763,0.00010356,2]
[405886198,1771396241467,-250.0,0.00010356,2]
[405886200,1771396241476,-250.0,0.00010356,2]
[405886202,1771396241485,-250.0,0.00010356,2]
[405886204,1771396241495,-250.0,0.00010356,2]
[405886206,1771396241504,-250.0,0.00010356,2]
[405886208,1771396241515,-250.0,0.00010356,2]
[405886210,1771396241524,-250.0,0.00010356,2]
[405886212,1771396241533,-250.0,0.00010356,2]
[405886215,1771396241544,-250.0,0.00010356,2]
[405886217,1771396241553,-500.0,0.00010356,2]
[405886219,1771396241567,-250.0,0.00010356,2]
[405886221,1771396241576,-500.0,0.00010356,2]
[405886223,1771396241586,-250.0,0.00010356,2]
[405886225,1771396241596,-500.0,0.00010356,2]
[405886227,1771396241605,-500.0,0.00010356,2]
[405886229,1771396241615,-500.0,0.00010356,2]
[405886231,1771396241624,-500.0,0.00010356,2]
[405886233,1771396241633,-500.0,0.00010356,2]
[405886235,1771396241643,-500.0,0.00010356,2]
[405886237,1771396241653,-500.0,0.00010356,2]
[405886239,1771396241662,-500.0,0.00010356,2]
[405886241,1771396241672,-500.0,0.00010356,2]
[405886243,1771396241681,-500.0,0.00010356,2]
[405886245,1771396241690,-500.0,0.00010356,2]
[405886247,1771396241701,-500.0,0.00010356,2]
[405886249,1771396241711,-500.0,0.00010356,2]
[405886251,1771396241720,-500.0,0.00010356,2]
[405886253,1771396241729,-500.0,0.00010356,2]
[405886255,1771396241738,-500.0,0.00010356,2]
[405886257,1771396241747,-500.0,0.00010356,2]
[405886259,1771396241757,-500.0,0.00010356,2]
[405886261,1771396241766,-500.0,0.00010367,2]
[405886263,1771396241776,-500.0,0.00010367,2]
[405886265,1771396241785,-500.0,0.00010367,2]
[405886267,1771396241794,-500.0,0.00010367,2]
[405886269,1771396241804,-500.0,0.00010367,2]
[405886271,1771396241813,-500.0,0.00010367,2]
[405886273,1771396241822,-500.0,0.00010367,2]
[405886275,1771396241831,-500.0,0.00010367,2]
[405886276,1771396241841,-500.0,0.00010367,2]
[405886277,1771396241850,-500.0,0.00010367,2]
[405886278,1771396241860,-16739.15662124,0.00010371,2]
[405886279,1771396241869,-2000.0,0.000104,2]
[405886280,1771396241878,-151.0,0.00010411,2]
[405886281,1771396241889,-719.04747942,0.00010411,2]
[405886283,1771396241898,-208.0,0.00010462,3]
[405886286,1771396241908,-291.0,0.00010462,3]
[405886288,1771396241918,-1252.0,0.00010466,2]
[405886290,1771396241927,-151.0,0.00010466,2]
[405886292,1771396241937,-745.65223616,0.00010466,2]
[405886294,1771396241946,-4609.0,0.00010467,2]
[405886296,1771396241956,-1152.0,0.00010467,2]
[405886298,1771396241966,-151.0,0.00010521,2]
[405886300,1771396241975,-773.2413689,0.00010521,2]
[405886302,1771396241984,-200.0,0.00010548,2]
[405886304,1771396241993,-500.0,0.00010548,2]
[405886306,1771396242002,-1846.16972481,0.00010566,2]
[405886308,1771396242012,-151.0,0.00010576,2]
[405886310,1771396242022,-801.85129955,0.00010576,2]
[405886312,1771396242033,-245.38613731,0.00010631,2]
[405886314,1771396242042,-831.51979763,0.00010631,2]
[405886316,1771396242052,-170.33,0.00010685,2]
[405886318,1771396242061,-862.28603014,0.00010686,2]
[405886320,1771396242071,-269.09940998,0.000107,2]
[405886321,1771396242080,-2000.0,0.000107,2]
[405886322,1771396242090,-894.19061326,0.00010741,2]
[405886323,1771396242100,-174.27,0.00010782,2]
[405886324,1771396242110,-426.79,0.00010794,2]
[405886325,1771396242120,-927.27566595,0.00010796,2]
[405886326,1771396242129,-213.7,0.00010821,2]
[405886327,1771396242139,-961.58486559,0.00010851,2]
[405886328,1771396242148,-7131.17065475,0.000109,2]
[405886329,1771396242160,-217.15233878,0.00010904,2]
[405886330,1771396242169,-771.01748645,0.00010904,2]
[405886331,1771396242180,-217.15233878,0.00010904,2]
[405886332,1771396242190,-200.0,0.00010904,2]
[405886333,1771396242199,-181.08010149,0.00010904,2]
[405886334,1771396242209,-287.61899177,0.00010904,2]
[405886335,1771396242219,-997.16350561,0.00010906,2]
[405886336,1771396242228,-1000.0,0.00010915,2]
[405886337,1771396242243,-967.34826575,0.00010915,2]
[405886338,1771396242253,-1000.0,0.00010915,2]
[405886339,1771396242263,-1000.0,0.00010915,2]
[405886340,1771396242274,-1000.0,0.00010915,2]
[405886341,1771396242284,-282.16255486,0.00010915,2]
[405886342,1771396242295,-1000.0,0.00010915,2]
[405886343,1771396242305,-1000.0,0.00010915,2]
[405886344,1771396242316,-1000.0,0.00010915,2]
[405886345,1771396242328,-194.2764898,0.00010915,2]
[405886346,1771396242338,-173.62051493,0.00010945,2]
[405886347,1771396242349,-160.0,0.00010945,2]
[405886348,1771396242358,-150.0,0.00010959,2]
[405886349,1771396242368,-150.0,0.00010959,2]
[405886350,1771396242377,-16899.82,0.00010959,2]
[405886351,1771396242387,-184.48,0.00010959,2]
[405886352,1771396242397,-9421.81,0.00010959,2]
[405886353,1771396242406,-166.66,0.00010959,2]
[405886354,1771396242416,-1018.58795989,0.00010998,3]
[405886355,1771396242425,-1162.09866091,0.00010998,2]
[405886356,1771396242436,-363.85732323,0.00010999,2]
[405886357,1771396242446,-4588.3903,0.00010999,2]
[405886358,1771396242455,-951.9112,0.00010999,2]
[405886359,1771396242464,-6035.69121348,0.00011,2]
[405886360,1771396242474,-200.0,0.00011009,2]
[405886361,1771396242484,-200.0,0.0001101,2]
[405886362,1771396242494,-200.0,0.0001101,2]
[405886363,1771396242503,-200.0,0.0001101,2]
[405886364,1771396242512,-166.66,0.00011068,2]
[405886365,1771396242522,-200.0,0.00011096,2]
[405886366,1771396242531,-500.0,0.00011096,2]
[405886367,1771396242541,-61005.06966842,0.00011099,2]
[405886368,1771396242552,-61005.06966833,0.00011099,2]
[405886369,1771396242561,-61005.06966833,0.00011099,2]
[405886370,1771396242571,-61005.06966833,0.00011099,2]
[405886371,1771396242580,-61005.06966833,0.00011099,2]
[405886372,1771396242590,-61005.06966833,0.00011099,2]
[405886373,1771396242600,-61005.06966833,0.00011099,2]
[405886374,1771396242610,-47594.24730166,0.00011099,2]
[405886375,1771396242620,-47594.24730166,0.00011099,2]
[405886376,1771396242630,-151.0,0.00011099,2]
[405886377,1771396242640,-158.584971,0.00011099,2]
[405886378,1771396242649,-151.0,0.00011099,2]
[405886379,1771396242659,-151.0,0.00011099,2]
[405886380,1771396242668,-228.869955,0.00011099,2]
[405886381,1771396242678,-172.496189,0.00011099,2]
[405886382,1771396242687,-257.949707,0.00011099,2]
[405886383,1771396242697,-257.949707,0.00011099,2]
[405886384,1771396242706,-257.949707,0.00011099,2]
[405886385,1771396242716,-257.949707,0.00011099,2]
[405886386,1771396242725,-257.949707,0.00011099,2]
[405886387,1771396242735,-257.949707,0.00011099,2]
[405886388,1771396242744,-257.949707,0.00011099,2]
[405886389,1771396242754,-257.949707,0.00011099,2]
[405886390,1771396242764,-1019.064594,0.00011099,2]
[405886391,1771396242774,-1019.064594,0.00011099,2]
[405886392,1771396242783,-1019.064594,0.00011099,2]
[405886393,1771396242793,-1019.064594,0.00011099,2]
[405886394,1771396242802,-10000.0,0.000111,2]
[405886395,1771396242811,-166.66,0.00011178,2]
[405886396,1771396242821,-208.0,0.00011183,3]
[405886397,1771396242830,-291.0,0.00011183,3]
[405886398,1771396242839,-155.0,0.00011197,2]
[405886399,1771396242848,-150.0,0.00011233,2]
[405886400,1771396242858,-14701.32,0.00011233,2]
[405886401,1771396242868,-257.949707,0.00011233,2]
[405886402,1771396242878,-257.949707,0.00011233,2]
[405886403,1771396242887,-257.949707,0.00011233,2]
[405886404,1771396242897,-257.949707,0.00011233,2]
[405886405,1771396242906,-166.66,0.00011288,2]
[405886406,1771396242916,-3233.0,0.000113,2]
[405886407,1771396242925,-1000.0,0.00011301,2]
[405886409,1771396242934,-1600.0,0.00011378,2]
[405886410,1771396242944,-166.66,0.00011397,2]
[405886411,1771396242953,-261.0,0.00011432,2]
[405886412,1771396242963,-271.0486849,0.00011448,2]
[405886413,1771396242972,-225.18697532,0.00011452,2]
[405886414,1771396242980,-293.37000728,0.00011452,2]
[405886415,1771396242990,-225.18697532,0.00011452,2]
[405886417,1771396243000,-187.78006525,0.00011452,2]
[405886418,1771396243009,-298.26089446,0.00011452,2]
[405886419,1771396243019,-1500.0,0.00011463,2]
[405886420,1771396243028,-1500.0,0.00011463,2]
[405886421,1771396243037,-1500.0,0.00011463,2]
[405886422,1771396243046,-1500.0,0.00011463,2]
[405886423,1771396243056,-1500.0,0.00011463,2]
[405886424,1771396243065,-1500.0,0.00011463,2]
[405886425,1771396243075,-746.69534376,0.00011463,2]
[405886426,1771396243084,-4075.03,0.00011507,2]
[405886427,1771396243094,-166.66,0.00011507,2]
[405886428,1771396243103,-170.33,0.00011507,2]
[405886429,1771396243113,-6453.0,0.00011513,2]
[405886430,1771396243122,-1613.0,0.00011513,2]
[405886431,1771396243132,-2129.0,0.00011517,2]
[405886432,1771396243142,-47594.24730166,0.00011622,2]
[405886433,1771396243152,-61005.06966833,0.00011622,2]
[405886434,1771396243165,-1019.064594,0.00011622,2]
[405886435,1771396243175,-1019.064594,0.00011622,2]
[405886436,1771396243185,-1019.064594,0.00011622,2]
[405886437,1771396243194,-1019.064594,0.00011622,2]
[405886438,1771396243206,-200.0,0.00011644,2]
[405886439,1771396243215,-504.510834,0.00011644,2]
[405886440,1771396243225,-1275.0,0.00011647,2]
[405886441,1771396243235,-267.291,0.00011647,2]
[405886442,1771396243249,-1224.539,0.00011647,2]
[405886443,1771396243259,-162.74,0.00011647,2]
[405886444,1771396243268,-1351.534,0.00011647,2]
[405886445,1771396243278,-210.10670375,0.00011725,2]
[405886446,1771396243288,-200.0,0.00011831,2]
[405886447,1771396243298,-295.72089,0.00011865,2]
[405886448,1771396243307,-497.649931,0.00011868,2]
[405886449,1771396243318,-208.0,0.00011905,3]
[405886450,1771396243327,-291.0,0.00011905,3]
[405886451,1771396243336,-7131.17065475,0.00011956,2]
[405886452,1771396243346,-250.0,0.00011987,12]
[405886453,1771396243356,-250.0,0.00011987,12]
[405886454,1771396243366,-231.0,0.00011987,12]
[405886455,1771396243376,-1000.0,0.00012,2]
[405886456,1771396243385,-300.0,0.00012,10]
[405886457,1771396243395,-233.51889341,0.00012,2]
[405886458,1771396243404,-233.51889341,0.00012,2]
[405886459,1771396243414,-194.72792766,0.00012,2]
[405886460,1771396243423,-309.29654756,0.00012,2]
[405886461,1771396243433,-2000.0,0.00012011,2]
[405886462,1771396243442,-2000.0,0.00012011,2]
[405886463,1771396243452,-1960.671579,0.00012011,2]
[405886464,1771396243461,-2000.0,0.00012011,2]
[405886465,1771396243471,-1286.22847441,0.00012011,2]
[405886466,1771396243480,-1509.709324,0.00012011,2]
[405886467,1771396243490,-23012.54,0.00012055,2]
[405886468,1771396243500,-151.0,0.00012055,2]
[405886469,1771396243510,-174.27,0.00012084,2]
[405886470,1771396243520,-426.79,0.0001211,2]
[405886471,1771396243530,-213.7,0.00012162,2]
[405886472,1771396243539,-200.0,0.00012192,2]
[405886473,1771396243549,-15838.89429678,0.00012207,2]
[405886474,1771396243560,-200.0,0.00012209,12]
[405886475,1771396243569,-200.0,0.00012209,12]
[405886476,1771396243579,-200.0,0.00012209,12]
[405886477,1771396243588,-184.0,0.00012209,12]
[405886478,1771396243598,-47594.24730166,0.00012211,2]
[405886479,1771396243608,-61005.06966833,0.00012211,2]
[405886480,1771396243618,-501.45,0.00012329,2]
[405886481,1771396243628,-1000.0,0.00012329,2]
[405886482,1771396243637,-170.33,0.00012329,2]
[405886483,1771396243647,-1600.0,0.00012413,2]
[405886484,1771396243657,-308.43277492,0.000125,2]
[405886485,1771396243666,-242.15909246,0.00012548,2]
[405886486,1771396243676,-242.15909246,0.00012548,2]
[405886487,1771396243688,-201.93286099,0.00012548,2]
[405886488,1771396243698,-320.74051982,0.00012548,2]
[405886489,1771396243708,-257.949707,0.00012558,2]
[405886490,1771396243718,-257.949707,0.00012558,2]
[405886491,1771396243727,-257.949707,0.00012558,2]
[405886492,1771396243736,-257.949707,0.00012558,2]
[405886493,1771396243746,-2500.0,0.00012558,2]
[405886494,1771396243756,-365.39566179,0.00012558,2]
[405886495,1771396243766,-2500.0,0.00012558,2]
[405886496,1771396243775,-150.0,0.00012617,2]
[405886497,1771396243784,-232.194,0.00012617,2]
[405886498,1771396243794,-250.0,0.00012617,2]
[405886499,1771396243803,-197.852,0.00012617,2]
[405886500,1771396243812,-225.99,0.00012617,2]
[405886501,1771396243821,-160.052,0.00012617,2]
[405886502,1771396243830,-250.0,0.00012617,2]
[405886503,1771396243839,-192.167,0.00012617,2]
[405886504,1771396243848,-164.907,0.00012617,2]
[405886505,1771396243858,-213.342,0.00012617,2]
[405886506,1771396243868,-250.0,0.00012617,2]
[405886507,1771396243878,-234.431,0.00012617,2]
[405886508,1771396243887,-174.0,0.00012617,2]
[405886509,1771396243897,-208.0,0.00012626,3]
[405886510,1771396243911,-291.0,0.00012626,3]
[405886511,1771396243920,-8063.04597772,0.00012654,2]
[405886512,1771396243930,-616.82823154,0.00012654,2]
[405886513,1771396243939,-9035.0,0.00012665,2]
[405886514,1771396243949,-2258.0,0.00012665,2]
[405886515,1771396243959,-3620.0,0.00012668,2]
[405886516,1771396243968,-200.0,0.0001274,2]
[405886517,1771396243978,-47594.24730166,0.000128,2]
[405886518,1771396243988,-1019.064594,0.000128,2]
[405886519,1771396243997,-1019.064594,0.000128,2]
[405886520,1771396244007,-1019.064594,0.000128,2]
[405886521,1771396244017,-1019.064594,0.000128,2]
[405886522,1771396244026,-61005.06966833,0.000128,2]
[405886523,1771396244035,-271.5,0.00012877,2]
[405886524,1771396244044,-150000.0,0.000129,2]
[405886525,1771396244054,-400.0,0.000129,4]
[405886526,1771396244063,-5623.94740036,0.00013,2]
[405886527,1771396244073,-151.0,0.00013,2]
[405886528,1771396244082,-257.949707,0.00013,2]
[405886529,1771396244092,-257.949707,0.00013,2]
[405886530,1771396244103,-257.949707,0.00013,2]
[405886531,1771396244112,-257.949715,0.00013,2]
[405886532,1771396244122,-638.51878363,0.00013,15]
[405886533,1771396244131,-1019.064594,0.00013,2]
[405886534,1771396244140,-1019.064594,0.00013,2]
[405886535,1771396244150,-1019.064594,0.00013,2]
[405886536,1771396244162,-1019.064594,0.00013,2]
[405886538,1771396244173,-500.0,0.00013,2]
[405886540,1771396244182,-500.0,0.00013,2]
[405886542,1771396244191,-800.0,0.00013,2]
[405886544,1771396244201,-2900.0,0.00013,2]
[405886546,1771396244210,-2900.0,0.00013,2]
[405886548,1771396244220,-2900.0,0.00013,2]
[405886550,1771396244229,-2900.0,0.00013,2]
[405886552,1771396244239,-2900.0,0.00013,2]
[405886554,1771396244248,-2900.0,0.00013,2]
[405886556,1771396244258,-2900.0,0.00013,2]
[405886558,1771396244267,-2900.0,0.00013,2]
[405886559,1771396244276,-2900.0,0.00013,2]
[405886561,1771396244286,-2900.0,0.00013,2]
[405886563,1771396244296,-2900.0,0.00013,2]
[405886565,1771396244306,-2900.0,0.00013,2]
[405886566,1771396244315,-2900.0,0.00013,2]
[405886568,1771396244325,-5795.43143402,0.00013,2]
[405886569,1771396244334,-500.0,0.00013,2]
[405886570,1771396244344,-500.0,0.00013,2]
[405886571,1771396244354,-500.0,0.00013,2]
[405886572,1771396244363,-500.0,0.00013,2]
[405886573,1771396244373,-500.0,0.00013,2]
[405886574,1771396244383,-500.0,0.00013,2]
[405886575,1771396244393,-500.0,0.00013,2]
[405886576,1771396244403,-500.0,0.00013,2]
[405886577,1771396244412,-500.0,0.00013,2]
[405886578,1771396244422,-500.0,0.00013,2]
[405886579,1771396244431,-500.0,0.00013,2]
[405886580,1771396244440,-500.0,0.00013,2]
[405886581,1771396244449,-500.0,0.00013,2]
[405886582,1771396244459,-500.0,0.00013,2]
[405886583,1771396244468,-500.0,0.00013,2]
[405886584,1771396244478,-500.0,0.00013,2]
[405886585,1771396244487,-500.0,0.00013,2]
[405886586,1771396244497,-500.0,0.00013,2]
[405886587,1771396244506,-500.0,0.00013,2]
[405886588,1771396244516,-500.0,0.00013,2]
[405886589,1771396244525,-500.0,0.00013,2]
[405886590,1771396244535,-500.0,0.00013,2]
[405886591,1771396244544,-500.0,0.00013,2]
[405886592,1771396244553,-2100.0,0.00013,2]
[405886593,1771396244563,-500.0,0.00013,2]
[405886594,1771396244865,-500.0,0.00013,2]
[405886595,1771396244875,-968.65142675,0.00013,2]
[405886596,1771396244886,-4600.0,0.00013,2]
[405886597,1771396244896,-2100.0,0.00013,2]
[405886598,1771396244906,-500.0,0.00013,2]
[405886599,1771396244916,-500.0,0.00013,2]
[405886600,1771396244926,-4600.0,0.00013,2]
[405886601,1771396244937,-2100.0,0.00013,2]
[405886602,1771396244947,-573.21497791,0.00013,2]
[405886603,1771396244958,-500.0,0.00013,2]
[405886604,1771396244970,-2100.0,0.00013,2]
[405886605,1771396244980,-934.97647106,0.00013,2]
[405886606,1771396244989,-4600.0,0.00013,2]
[405886607,1771396244999,-500.0,0.00013,2]
[405886608,1771396245011,-2100.0,0.00013,2]
[405886609,1771396245022,-4600.0,0.00013,2]
[405886610,1771396245033,-2100.0,0.00013,2]
[405886611,1771396245044,-4600.0,0.00013,2]
[405886612,1771396245054,-2100.0,0.00013,2]
[405886613,1771396245065,-4600.0,0.00013,2]
[405886614,1771396245077,-500.0,0.00013,2]
[405886615,1771396245090,-2100.0,0.00013,2]
[405886616,1771396245100,-4600.0,0.00013,2]
[405886617,1771396245109,-2100.0,0.00013,2]
[405886618,1771396245118,-4600.0,0.00013,2]
[405886619,1771396245128,-2100.0,0.00013,2]
[405886620,1771396245137,-4600.0,0.00013,2]
[405886621,1771396245147,-2100.0,0.00013,2]
[405886622,1771396245156,-4600.0,0.00013,2]
[405886623,1771396245170,-500.0,0.00013,2]
[405886624,1771396245180,-2100.0,0.00013,2]
[405886625,1771396245190,-4600.0,0.00013,2]
[405886626,1771396245200,-4600.0,0.00013,2]
[405886627,1771396245210,-2100.0,0.00013,2]
[405886628,1771396245219,-500.0,0.00013,2]
[405886629,1771396245228,-500.0,0.00013,2]
[405886630,1771396245239,-4600.0,0.00013,2]
[405886631,1771396245249,-3324.06174558,0.00013,2]
[405886632,1771396245258,-500.0,0.00013,2]
[405886633,1771396245268,-7193.92067854,0.00013,2]
[405886634,1771396245278,-10000.0,0.00013,2]
[405886635,1771396245288,-500.0,0.00013,2]
[405886636,1771396245298,-2700.0,0.00013,2]
[405886637,1771396245307,-10000.0,0.00013,2]
[405886638,1771396245317,-2700.0,0.00013,2]
[405886639,1771396245326,-10000.0,0.00013,2]
[405886640,1771396245335,-500.0,0.00013,2]
[405886641,1771396245345,-2700.0,0.00013,2]
[405886642,1771396245354,-10000.0,0.00013,2]
[405886643,1771396245364,-2700.0,0.00013,2]
[405886644,1771396245374,-1800.0,0.00013,2]
[405886645,1771396245383,-10000.0,0.00013,2]
[405886646,1771396245393,-2700.0,0.00013,2]
[405886647,1771396245402,-10000.0,0.00013,2]
[405886648,1771396245412,-1800.0,0.00013,2]
[405886649,1771396245421,-800.0,0.00013,2]
[405886650,1771396245430,-2700.0,0.00013,2]
[405886651,1771396245439,-10000.0,0.00013,2]
[405886652,1771396245449,-1800.0,0.00013,2]
[405886653,1771396245458,-800.0,0.00013,2]
[405886654,1771396245467,-2700.0,0.00013,2]
[405886655,1771396245476,-10000.0,0.00013,2]
[405886656,1771396245486,-1800.0,0.00013,2]
[405886657,1771396245499,-500.0,0.00013,2]
[405886658,1771396245508,-800.0,0.00013,2]
[405886659,1771396245517,-2700.0,0.00013,2]
[405886660,1771396245526,-10000.0,0.00013,2]
[405886661,1771396245535,-1800.0,0.00013,2]
[405886662,1771396245545,-500.0,0.00013,2]
[405886663,1771396245554,-800.0,0.00013,2]
[405886664,1771396245563,-2700.0,0.00013,2]
[405886665,1771396245572,-500.0,0.00013,2]
[405886666,1771396245582,-1800.0,0.00013,2]
[405886667,1771396245591,-10000.0,0.00013,2]
[405886668,1771396245601,-500.0,0.00013,2]
[405886669,1771396245610,-800.0,0.00013,2]
[405886670,1771396245620,-2700.0,0.00013,2]
[405886671,1771396245629,-10000.0,0.00013,2]
[405886672,1771396245639,-1800.0,0.00013,2]
[405886673,1771396245648,-500.0,0.00013,2]
[405886674,1771396245658,-800.0,0.00013,2]
[405886675,1771396245668,-2700.0,0.00013,2]
[405886676,1771396245677,-10000.0,0.00013,2]
[405886677,1771396245687,-1800.0,0.00013,2]
[405886678,1771396245700,-500.0,0.00013,2]
[405886679,1771396245710,-800.0,0.00013,2]
[405886680,1771396245720,-2700.0,0.00013,2]
[405886681,1771396245730,-10000.0,0.00013,2]
[405886682,1771396245741,-1800.0,0.00013,2]
[405886683,1771396245752,-500.0,0.00013,2]
[405886684,1771396245763,-800.0,0.00013,2]
[405886685,1771396245773,-2700.0,0.00013,2]
[405886686,1771396245783,-17422.97130473,0.00013,2]
[405886687,1771396245794,-1800.0,0.00013,2]
[405886688,1771396245804,-747.20350337,0.00013,2]
[405886689,1771396245813,-800.0,0.00013,2]
[405886690,1771396245822,-2827.4356947,0.00013,2]
[405886691,1771396245831,-1800.0,0.00013,2]
[405886692,1771396245841,-800.0,0.00013,2]
[405886693,1771396245850,-1800.0,0.00013,2]
[405886694,1771396245861,-600.0,0.00013,2]
[405886695,1771396245870,-800.0,0.00013,2]
[405886696,1771396245879,-2200.0,0.00013,2]
[405886697,1771396245891,-1800.0,0.00013,2]
[405886698,1771396245900,-1100.0,0.00013,2]
[405886699,1771396245911,-800.0,0.00013,2]
[405886700,1771396245921,-600.0,0.00013,2]
[405886701,1771396245933,-2200.0,0.00013,2]
[405886702,1771396245943,-3464.18790327,0.00013,2]
[405886703,1771396245954,-1100.0,0.00013,2]
[405886704,1771396245963,-800.0,0.00013,2]
[405886705,1771396245973,-600.0,0.00013,2]
[405886706,1771396245983,-1100.0,0.00013,2]
[405886707,1771396245992,-600.0,0.00013,2]
[405886708,1771396246002,-876.90946248,0.00013,2]
[405886709,1771396246012,-2200.0,0.00013,2]
[405886710,1771396246023,-1100.0,0.00013,2]
[405886711,1771396246033,-600.0,0.00013,2]
[405886712,1771396246043,-2200.0,0.00013,2]
[405886713,1771396246054,-600.0,0.00013,2]
[405886714,1771396246064,-1100.0,0.00013,2]
[405886715,1771396246075,-2200.0,0.00013,2]
[405886716,1771396246086,-600.0,0.00013,2]